Cogmind - Beta 14 @@@ ROGUE MODE // 2025.03.25 @ 21:26:50 Player: mix Result: Destroyed by 5T-TFW(j) with Overtuned Pulse Rifle Performance ------------- Evolutions (0) 0 Regions Visited (4) 800 Robots Destroyed (22) 110 Value Destroyed (537) 537 Prototype IDs (14) 280 Alien Tech Used (0) 0 Bonus (-109) -109 TOTAL SCORE: 1618 Bonus ------- Follower Combat Kills 117 Friendly Fire -226 Cogmind --------- Core Integrity 0/250 Matter 270/300 Energy 100/100 System Corruption 0% Temperature Warning (362) Movement Core (200) Ox3 Location -9/Scraptown Parts ------- > --- POWER (1) -------- (None) > --- PROPULSION (2) --- (None) > --- UTILITY (2) ------ V3-11A's Pendant > --- WEAPON (2) ------- Beam Rifle Subdweller Shrapnel Launcher > --- INVENTORY (5) ---- Beam Rifle Scrap Shield Fragment (39) Scrap Shield Fragment (26) Scrap Shield Fragment (22) Scrap Shield Fragment (5) Peak State ------------ > --- POWER ------------ Improved Ion Engine > --- PROPULSION ------- Light Treads Light Treads > --- UTILITY ---------- Small Storage Unit V3-11A's Pendant > --- WEAPON ----------- Beam Rifle Subdweller Laser > --- INVENTORY -------- Light Ion Engine Beam Rifle Grenade Launcher Subdweller Shrapnel Launcher Scrap Shield Fragment Scrap Shield Fragment Scrap Shield Fragment Scrap Shield Fragment [Rating: 13] Favorites ----------- Power Subdweller Power Source Engine Subdweller Power Source Propulsion Light Treads Treads Light Treads Wheel Wheel Utility Small Storage Unit Device V3-11A's Pendant Storage Small Storage Unit Weapon Subdweller Laser Energy Gun Subdweller Laser Energy Cannon Subdweller Beam Cannon Launcher Grenade Launcher Build | -11 -10 -10 -9 -9 ------- Run | Yrd Mat Sub Rec Scr Slots Evolved . | . . . . . Power . | . . . . . Propulsion . | . . . . . Utility . | . . . . . Weapon . | . . . . . Parts Attached 26 | 6 7 8 4 1 Power 6 | 1 1 3 1 . Engine 6 | 1 1 3 1 . Core . | . . . . . Reactor . | . . . . . Propulsion 5 | 2 . 1 2 . Treads 4 | 2 . . 2 . Leg . | . . . . . Wheel 1 | . . 1 . . Hover . | . . . . . Flight . | . . . . . Utility 3 | 1 1 1 . . Device 2 | . 1 1 . . Storage 1 | 1 . . . . Processor . | . . . . . Hackware . | . . . . . Protection . | . . . . . Artifact . | . . . . . Weapon 12 | 2 5 3 1 1 Energy Gun 9 | 2 4 2 1 . Energy Cannon 1 | . . 1 . . Ballistic Gun . | . . . . . Ballistic Cannon . | . . . . . Launcher 2 | . 1 . . 1 Special Weapon . | . . . . . Impact Weapon . | . . . . . Slashing Weapon . | . . . . . Piercing Weapon . | . . . . . Special Melee Weapon . | . . . . . Unidentified Prototypes 1 | . . 1 . . Parts Lost 11 | . . 5 1 5 Power 2 | . . 1 . 1 Propulsion 5 | . . 2 1 2 Utility 2 | . . 1 . 1 Weapon 2 | . . 1 . 1 Highest Loss Streak 5 | . . 2 1 5 To Critical Strikes . | . . . . . Average Slot Usage (%) 89 | . 98 84 98 100 Engine 13 | . 14 13 14 14 Treads 19 | . 28 16 26 28 Device 12 | . 12 11 14 14 Storage 14 | . 14 14 14 14 Energy Gun 18 | . 27 15 28 28 Energy Cannon 9 | . . 12 . . Peak Build Rating 13 | 6 9 12 13 13 Average Rating 10 | 4 7 10 12 12 On Entrance 7 | . 6 8 9 13 Naked Turns . | . . . . . Heaviest Build 23 | 11 17 23 20 20 Greatest Support 40 | 40 40 40 40 40 Greatest Overweight (x) 5 | . . 2 5 . Average Overweight (x) . | . . . . . Largest Inventory Capacity 8 | 8 8 8 8 8 Average Capacity 7 | 7 8 8 8 7 Most Carried 8 | 5 6 8 8 7 Average Carried 6 | . 2 7 7 6 Final Capacity 8 | 8 8 8 8 5 Final Carried 8 | . 4 8 7 5 Class Distribution -------------------- 82% | Mutant 17% | Scavenger-Mutant Dominant Class ---------------- Mutant | -10/Materials Mutant | -10/Subcaves Scavenger-Mutant | -9/Recycling Scavenger-Mutant | -9/Scraptown Resources | -11 -10 -10 -9 -9 ----------- Run | Yrd Mat Sub Rec Scr Matter Collected 474 | 162 159 113 40 . Remotely . | . . . . . Salvage Created 733 | 36 208 347 107 35 Parts 40 | 3 9 19 5 4 Haulers Intercepted . | . . . . . Recyclers Shooed 2 | . 2 . . . Parts Field Recycled . | . . . . . Retrieved Matter . | . . . . . Parts Self-Destructed 14 | . . 14 . . Prevented . | . . . . . Kills | -11 -10 -10 -9 -9 ------- Run | Yrd Mat Sub Rec Scr Combat Hostiles Destroyed 15 | . 4 10 1 . Guns 11 | . 4 6 1 . Cannons 4 | . . 4 . . Classes Destroyed 9 | 1 2 5 1 . Tunneler 3 | 2 1 . . . Recycler 1 | . . . 1 . Mechanic 1 | . 1 . . . Turret 1 | . . 1 . . Swarmer 4 | . . 4 . . Grunt 6 | . 4 2 . . Sentry 2 | . . 1 1 . Artisan 1 | . . 1 . . Subdweller 4 | . . 3 . 1 Best Kill Streak 3 | 2 3 3 1 . Combat Bots Only 3 | . 3 3 1 . Max Kills in Single Turn 1 | 1 1 1 1 1 Gunslinging . | . . . . . Exploded . | . . . . . Melee . | . . . . . Uniques/NPCs Destroyed . | . . . . . Combat | -11 -10 -10 -9 -9 -------- Run | Yrd Mat Sub Rec Scr Hostile Shots Fired 81 | . 16 46 2 17 Missed 19 | . 5 11 . 3 Damage Taken 1612 | . 117 847 28 620 Core 258 | . . 141 . 117 Absorbed by Shields . | . . . . . Core Remaining (%) 100 | 100 . . . . Volleys Fired 73 | 6 20 38 4 5 Largest 2 | 2 2 2 2 2 Hottest 140 | 90 112 140 116 116 Shots Fired 142 | 12 37 75 8 10 Gun 111 | 12 34 49 8 8 Cannon 26 | . . 26 . . Launcher 5 | . 3 . . 2 Special . | . . . . . Kinetic 2 | . . . . 2 Thermal 137 | 12 34 75 8 8 Explosive 3 | . 3 . . . Electromagnetic . | . . . . . Robot Hit Streak 14 | 2 6 14 3 6 Robot Miss Streak 3 | 2 3 2 2 1 Penetration Max . | . . . . . Secondary Targets . | . . . . . Shots Hit Robots 80 | 7 22 38 4 9 Core Hits 34 | 2 11 16 3 2 Critical Kills . | . . . . . Critical Parts Destroyed . | . . . . . Critical Strikes 3 | . 1 2 . . Burn 3 | . 1 2 . . Melee Attacks . | . . . . . Impact . | . . . . . Slashing . | . . . . . Piercing . | . . . . . Sneak Attacks . | . . . . . Combat Hostiles . | . . . . . Follow-up Attacks . | . . . . . Damage Inflicted 1625 | 96 335 701 70 423 Guns 1112 | 96 297 535 70 114 Cannons 166 | . . 166 . . Explosions 347 | . 38 . . 309 Melee . | . . . . . Ramming . | . . . . . Kinetic 309 | . . . . 309 Thermal 1278 | 96 297 701 70 114 Explosive 38 | . 38 . . . Electromagnetic . | . . . . . Impact . | . . . . . Slashing . | . . . . . Piercing . | . . . . . Highest Corruption . | . . . . . Average Corruption . | . . . . . Corruption Purged . | . . . . . Corruption Blocked . | . . . . . Overload Shots . | . . . . . Overflow Damage . | . . . . . Projectiles . | . . . . . Explosions . | . . . . . Melee . | . . . . . Knockbacks . | . . . . . Impact . | . . . . . Kinetic . | . . . . . Secondary . | . . . . . Self-Inflicted Damage 78 | . . . . 78 Shots 2 | . . . . 2 Rammed . | . . . . . Targets Rammed . | . . . . . Kicked . | . . . . . Crushed . | . . . . . Highest Temperature 350 | 140 75 296 114 350 Average Temperature 61 | 75 24 63 45 180 Received Heat Transfer 713 | . 66 480 9 158 Effects 2 | . . . . 2 Interference 2 | . . . . 2 Siege Activations . | . . . . . Robots Corrupted . | . . . . . Combat Hostiles . | . . . . . Parts Fried . | . . . . . Impact Corruptions . | . . . . . Robots Melted . | . . . . . Combat Hostiles . | . . . . . Parts Melted 6 | . 3 3 . . Heat Transferred 2858 | 248 841 1410 124 235 Parts Sabotaged . | . . . . . Parts Stolen . | . . . . . Parts Stripped . | . . . . . Power Chain Reactions . | . . . . . Alert | -11 -10 -10 -9 -9 ------- Run | Yrd Mat Sub Rec Scr Peak Influence 139 | 10 81 . 139 . Initial 74 | . 6 . 74 . Average 58 | 1 42 . 81 . Maximum Alert Level . | . . . . . Low Security (%) 100 | 100 100 . 100 . Level 1 . | . . . . . Level 2 . | . . . . . Level 3 . | . . . . . Level 4 . | . . . . . Level 5 . | . . . . . High Security . | . . . . . Max Security . | . . . . . Squads Dispatched 2 | . 2 . . . Investigation 1 | . 1 . . . Extermination . | . . . . . Reinforcement 1 | . 1 . . . Assault . | . . . . . Garrison . | . . . . . Intercept . | . . . . . Searches Triggered . | . . . . . Construction Impeded . | . . . . . Haulers Reinforced . | . . . . . Active Scanning Responses . | . . . . . Cargo Convoy Interrupts . | . . . . . Stealth | -11 -10 -10 -9 -9 --------- Run | Yrd Mat Sub Rec Scr Distress Signals . | . . . . . Communications Jammed . | . . . . . Distress Signals . | . . . . . Times Spotted 32 | . 6 20 2 4 Peak Tracking Total 4 | . 3 4 1 4 Tactical Retreats 2 | . 1 1 . . Traps | -11 -10 -10 -9 -9 ------- Run | Yrd Mat Sub Rec Scr Traps Triggered 5 | . . 5 . . Indirectly . | . . . . . Trap Hack Attempts . | . . . . . Triggered . | . . . . . Disarmed . | . . . . . Reprogrammed . | . . . . . Reused . | . . . . . Traps Extracted . | . . . . . Installed . | . . . . . Triggered . | . . . . . Machines | -11 -10 -10 -9 -9 ---------- Run | Yrd Mat Sub Rec Scr Machines Disabled 2 | . . 2 . . Max in Single Turn 1 | . . 1 . . Machines Repaired . | . . . . . Machines Dismantled . | . . . . . Machines Sabotaged . | . . . . . Overloaded Fab Kills . | . . . . . Hacking | -11 -10 -10 -9 -9 --------- Run | Yrd Mat Sub Rec Scr Machines Accessed 7 | . 3 3 1 . Terminals 2 | . 1 . 1 . Fabricators . | . . . . . Repair Stations . | . . . . . Recycling Units 2 | . 2 . . . Scanalyzers . | . . . . . Garrison Access . | . . . . . Total Hacks 23 | . 8 12 3 . Successful 16 | . 2 12 2 . Failed 7 | . 6 . 1 . Catastrophic 1 | . . . 1 . Database Lockouts . | . . . . . Manual 4 | . 2 . 2 . Terminals 5 | . 2 . 3 . Fabricators . | . . . . . Repair Stations . | . . . . . Recycling Units 6 | . 6 . . . Scanalyzers . | . . . . . Garrison Access . | . . . . . Terminal Hacks 15 | . 1 12 2 . Record 9 | . . 9 . . Prototype ID Bank 1 | . . . 1 . Open Door 1 | . . 1 . . Zone Layout 2 | . 1 . 1 . Derelict Proto ID Bank 1 | . . 1 . . Release Object 1 | . . 1 . . Fabricator Hacks . | . . . . . Repair Station Hacks . | . . . . . Recycling Unit Hacks . | . . . . . Scanalyzer . | . . . . . Garrison Access Hacks . | . . . . . Unauthorized Hacks 1 | . 1 . . . Terminals . | . . . . . Fabricators . | . . . . . Repair Stations . | . . . . . Recycling Units 1 | . 1 . . . Reject 1 | . 1 . . . Scanalyzers . | . . . . . Garrison Access . | . . . . . Data Cores Recovered . | . . . . . Used . | . . . . . Hacking Detections 3 | . 2 . 1 . Full Trace Events 2 | . 2 . . . Feedback Events . | . . . . . Feedback Blocked . | . . . . . Robot Schematics Acquired . | . . . . . Robots Built . | . . . . . Authchips . | . . . . . Time . | . . . . . Total Robot Build Rating . | . . . . . Part Schematics Acquired . | . . . . . Parts Built . | . . . . . Authchips . | . . . . . Time . | . . . . . Total Part Build Rating . | . . . . . Parts Repaired . | . . . . . Time . | . . . . . Parts Recycled . | . . . . . Recycled Matter . | . . . . . Retrieved Matter . | . . . . . Retrieved Components . | . . . . . Parts Scanalyzed . | . . . . . Part Schematics Acquired . | . . . . . Parts Damaged . | . . . . . Bothacking | -11 -10 -10 -9 -9 ------------ Run | Yrd Mat Sub Rec Scr Used RIF Installer . | . . . . . Robots Hacked . | . . . . . Non-combat . | . . . . . Combat . | . . . . . Robot Hacks Applied . | . . . . . Relay Couplers Released . | . . . . . Fabnet Peak Effective % . | . . . . . Robots Rewired . | . . . . . Allies Hacked . | . . . . . Hacks Repelled . | . . . . . Allies | -11 -10 -10 -9 -9 -------- Run | Yrd Mat Sub Rec Scr Total Allies 4 | . . 4 . . Largest Group 3 | . . 3 3 3 Highest-Rated Group 57 | . . 57 57 57 Highest-Rated Ally 19 | . . 19 19 19 Total Orders . | . . . . . Ally Attacks 34 | . . 18 5 11 Total Damage 599 | . . 345 65 189 Kills 8 | . . 6 2 . Allies Corrupted . | . . . . . Allies Melted . | . . . . . Intel | -11 -10 -10 -9 -9 ------- Run | Yrd Mat Sub Rec Scr Robot Analysis Total . | . . . . . Derelict Logs Recovered 2 | . . 2 . . Drone Launches . | . . . . . Drone Recoveries . | . . . . . Exploration | -11 -10 -10 -9 -9 ------------- Run | Yrd Mat Sub Rec Scr Turns Passed 5807 | 58 705 4012 658 374 Spaces Moved 2579 | 26 188 1755 386 224 Core 14 | 11 . . 3 . Treads 2486 | 15 188 1676 383 224 Legs . | . . . . . Wheels 79 | . . 79 . . Hover . | . . . . . Flight . | . . . . . Fastest Speed 50 | 50 160 110 160 160 Average Speed 199 | 113 160 219 161 160 Slowest Speed 300 | 160 160 240 300 160 Overloaded Moves . | . . . . . Propulsion Burnouts . | . . . . . Robots Hopped . | . . . . . Cave-ins Triggered . | . . . . . Exploration Rate (%) 51 | 3 29 93 94 36 Regions Visited 4 Branch Regions 3 Pre-discovered Areas . | . . . . . Known Exits Taken . | . . . . . Unknown Exits Taken 4 | 1 1 1 1 . Scrap Searched 2 | . . 2 . . Spaces Dug . | . . . . . Terrain Destroyed 19 | . 12 7 . . Melee . | . . . . . Projectile 7 | . . 7 . . AOE 12 | . 12 . . . Terrain Rammed . | . . . . . Walls Destroyed . | . . . . . Machines Disabled . | . . . . . Actions | -11 -10 -10 -9 -9 --------- Run | Yrd Mat Sub Rec Scr Total 3082 | 42 554 1841 414 231 Wait 377 | . 329 29 18 1 Move 2575 | 25 187 1754 385 224 Hop . | . . . . . Pick Up 22 | 5 8 7 2 . Fast Attach 5 | 1 . 3 1 . Attach 10 | 5 1 1 2 1 Detach . | . . . . . Swap 11 | . 6 4 1 . Drop 8 | . 3 4 1 . Fire 73 | 6 20 38 4 5 Melee . | . . . . . Ram . | . . . . . Kick . | . . . . . Crush . | . . . . . Escape Stasis . | . . . . . Rewire . | . . . . . Trap . | . . . . . Miscellaneous 1 | . . 1 . . Route ------- -11/Scrapyard -10/Materials -10/Subcaves (discovered 3 exits: [*Mat x2] / *Rec) -9/Recycling (discovered 2 exits: [*Fac] / [*Scr]) -9/Scraptown History --------- Turn | Location | Event 4 | -11/Scrapyard | Discovered new exit (range 16) 59 | -11/Scrapyard | Entered Materials 318 | -10/Materials | Build established: Mutant 751 | -10/Materials | Discovered new exit (range 9) 764 | -10/Materials | Entered Subcaves 1014 | -10/Subcaves | Discovered new exit (range 9) 1032 | -10/Subcaves | Ambushed by Subdweller buried in earth 1635 | -10/Subcaves | Core integrity fell below 50% 1774 | -10/Subcaves | Learned 2 Materials zone layouts 2227 | -10/Subcaves | Visited triangular shrine 2237 | -10/Subcaves | Learned Materials non-interactive machine intel 2242 | -10/Subcaves | Found Prototype Device 2242 | -10/Subcaves | Identified V3-11A's Pendant 2247 | -10/Subcaves | Befriended Subdweller 2699 | -10/Subcaves | Visited 4L-MR0's lab 2804 | -10/Subcaves | Discovered new exit (range 12) 2886 | -10/Subcaves | Released subatomizers from SUBCON Basin 3144 | -10/Subcaves | Ambushed by Subdwellers from Twisted Machinery 3147 | -10/Subcaves | Befriended Subdweller 3167 | -10/Subcaves | A swath of the cavern ceiling suddenly collapsed 3639 | -10/Subcaves | Shifting Twisted Machinery released Barrage Gun 3643 | -10/Subcaves | Shifting Twisted Machinery released Sub. Machine Gun 3715 | -10/Subcaves | Shifting Twisted Machinery released Sub. Power Source 4146 | -10/Subcaves | Shifting Twisted Machinery released Flamer 4242 | -10/Subcaves | Befriended Subdweller 4698 | -10/Subcaves | Disturbed a concealed Subdweller 4702 | -10/Subcaves | Befriended Subdweller 4755 | -10/Subcaves | Discovered new exit (range 10) 4776 | -10/Subcaves | Entered Recycling 4776 | -9/Recycling | Accompanied by 3 allies 5119 | -9/Recycling | Build established: Scavenger-Mutant 5332 | -9/Recycling | Discovered new exit (range 16) 5376 | -9/Recycling | Scanned before Scraplab entrance 5417 | -9/Recycling | Entered Scraplab 5429 | -9/Recycling | Discovered new exit (range 4) 5434 | -9/Recycling | Entered Scraptown 5434 | -9/Scraptown | Accompanied by 3 allies 5708 | -9/Scraptown | Visited Fellowship of the Rings 5795 | -9/Scraptown | Attacked by Scraptown defenders 5808 | -9/Scraptown | Core integrity fell below 20% 5808 | -9/Scraptown | Destroyed by 5T-TFW(j) with Overtuned Pulse Rifle Last Messages --------------- V6-I01(R) destroyed. Siege Slug penetrates Wall. Penetrated by Siege Slug. Sub. Laser destroyed. Critical hit (Burn: +50). Penetrated by Siege Slug. Lgt. Treads destroyed. UI-VC6(R) destroyed. Critical hit (Burn: +50). Penetrated by Siege Slug. Lgt. Treads destroyed. Sml. Storage Unit destroyed. Knocked back. Penetrated by Siege Slug. Overheating: System interference. V3-11A's Pendant temporarily disabled. Penetrated by Siege Slug. Imp. Ion Engine destroyed. Knocked back. Penetrated by Siege Slug. Map ----- +----------------------------------------------------+ | # #???"" """? ???????????????????????? | | # #??#" " ?"??????????????????????? | | # #??#" " "??????????????????????? | | # #??#"" " ???????????????????????? | | # #??#" " "????????????????????????? | | # #???" " ?????????????????????????? | | # #????" ???????????????????????????? | | ### ############ ##########???????????????????? | | #???????????????????? | | #???????????????????? | | #???????????????????? | | #???????????????????? | | #???????????????????? | | ################# #???????????????????? | | #???????????????# #???????????????????? | | #???????????????# #???????????????????? | | #??????????????## #???????????????????? | | #??????????????#; #???????????????????? | | #???????????????; #???????????????????? | | #??????????????## ###?????????????????? | | #??????????????#; ""#"#???????????????? | | ???????????????#; """"#???????????????? | | ????????????????# j ""###???????????????? | | ????????????????# ###?????????????????? | | ???????????????????# !&&#####???????????????? | | ???????????????????# %%@&%! "???????????????? | | ???????????????????# j&&= & "???????????????? | | ???????????????????# x* "???????????????? | | ???????????????????# ] "???????????????? | | ???????????????????# TT "???????????????? | | ????????????????? TT "???????????????? | | ??????????????? "???????????????? | | ????????????? "???????????????? | | ???????????? "???????????????? | | ???????????? "???????????????? | | ????????????? #"???????????????? | | ????????????? #????????????????? | | ?????????????? #????????????????? | | ??????????????######## ### ####????????????????? | | ????????????????????? ??? #???????????????????? | | ????????????????????? ??? #???????????????????? | | ?????????????????????#???? #???????????????????? | | ?????????????????????????? ?????????????????????? | | ?????????????????????????????????????????????????? | | ?????????????????????????????????????????????????? | | ?????????????????????????????????????????????????? | | ?????????????????????????????????????????????????? | | ?????????????????????????????????????????????????? | | ?????????????????????????????????????????????????? | | ?????????????????????????????????????????????????? | +----------------------------------------------------+ Best States ------------- Heat Dissipation 35 Energy Generation 15 Energy Capacity 265 Matter Stores 300 Matter Capacity 300 Sight Range 16 Terrain Scan Density 10 Evasion (%) 50 Recoil Reduction 2 Item Schematics ----------------- None Robot Schematics ------------------ None Fabricated ------------ Nothing Alien Tech Used ----------------- None Achievements -------------- None Challenges ------------ None Game ------ Seed ScrapConcussiveEngine Manual? 0 Play Time 00:23:09 Cumulative 66.2 hours Start 2025.03.25 @ 21:02:38 End 2025.03.25 @ 21:26:50 Sessions 1 Manual Loads 0 Difficulty Rogue Special Mode None Game No. 98 Rogue 84 Adventurer 14 Explorer 0 Win Type - Total 0 Types 0/0/0/0/0/0/0/0/0 Lore% 26 Gallery% 44 Achievement% 41 Wizard Run 0 Options --------- Layout 1 ASCII 0 Keyboard 0 Movement Mouse Keybinds 0 Fullscreen 1 Font 24/Smallcaps Map View 50x35 Zoom Use 17% Tactical HUD 0 Map Filters NONE Filters NONE Steam 1 RUN: 1ba7b95b-c5a3-4364-835e-46ad2006949d